Cogmind - Beta 14 @@@ ROGUE MODE // 2024.09.15 @ 18:48:25 Player: jimmyl Result: Destroyed by 6L-9O5(R) with Subdweller Machine Gun Performance ------------- Evolutions (0) 0 Regions Visited (3) 600 Robots Destroyed (14) 70 Value Destroyed (394) 394 Prototype IDs (1) 20 Alien Tech Used (0) 0 Bonus (88) 88 TOTAL SCORE: 1172 Bonus ------- Follower Combat Kills 88 Cogmind --------- Core Integrity 0/250 Matter 300/300 Energy 248/250 System Corruption 0% Temperature Cool (0) Movement Rolling (90) Location -10/Subcaves Parts ------- > --- POWER (1) -------- Ion Engine > --- PROPULSION (2) --- Wheel Compact Wheel > --- UTILITY (2) ------ Small Storage Unit V3-11A's Pendant > --- WEAPON (2) ------- Riot Gun Battle Cannon > --- INVENTORY (8) ---- Light Ion Engine Makeshift Light Armor Plating Rocket Launcher Peak State ------------ > --- POWER ------------ Ion Engine > --- PROPULSION ------- Wheel Compact Wheel > --- UTILITY ---------- Small Storage Unit Makeshift Light Armor Plating > --- WEAPON ----------- Riot Gun Subdweller Beam Cannon > --- INVENTORY -------- Light Ion Engine Rocket Launcher [Rating: 13] Favorites ----------- Power Light Ion Engine Engine Light Ion Engine Propulsion Light Treads Treads Light Treads Leg Aluminum Leg Wheel Wheel Utility Small Storage Unit Device V3-11A's Pendant Storage Small Storage Unit Protection Makeshift Light Armor Plating Weapon Light Assault Rifle Energy Gun Riot Gun Energy Cannon Subdweller Beam Cannon Ballistic Gun Light Assault Rifle Ballistic Cannon Battle Cannon Launcher Rocket Launcher Special Weapon Flamer Build | -11 -10 -10 -10 ------- Run | Yrd Mat Min Sub Slots Evolved . | . . . . Power . | . . . . Propulsion . | . . . . Utility . | . . . . Weapon . | . . . . Parts Attached 30 | . 14 1 15 Power 3 | . 2 . 1 Engine 3 | . 2 . 1 Core . | . . . . Reactor . | . . . . Propulsion 11 | . 8 . 3 Treads 8 | . 7 . 1 Leg . | . . . . Wheel 3 | . 1 . 2 Hover . | . . . . Flight . | . . . . Utility 5 | . 2 . 3 Device 2 | . . . 2 Storage 2 | . 2 . . Processor . | . . . . Hackware . | . . . . Protection 1 | . . . 1 Artifact . | . . . . Weapon 11 | . 2 1 8 Energy Gun 1 | . . . 1 Energy Cannon 2 | . . . 2 Ballistic Gun 3 | . 2 . 1 Ballistic Cannon 1 | . . . 1 Launcher 1 | . . 1 . Special Weapon 3 | . . . 3 Impact Weapon . | . . . . Slashing Weapon . | . . . . Piercing Weapon . | . . . . Special Melee Weapon . | . . . . Unidentified Prototypes 1 | . . . 1 Parts Lost 8 | . . 1 7 Power 1 | . . . 1 Propulsion 3 | . . 1 2 Utility 1 | . . . 1 Weapon 3 | . . . 3 Highest Loss Streak 6 | . . 1 6 To Critical Strikes . | . . . . Average Slot Usage (%) 94 | . 89 94 96 Engine 13 | . 12 14 13 Treads 17 | . 15 22 13 Leg 1 | . 10 . . Wheel 5 | . . . 12 Device 4 | . . . 10 Storage 22 | . 21 28 16 Energy Gun 3 | . . . 7 Energy Cannon 2 | . . . 4 Ballistic Gun 17 | . 28 27 5 Ballistic Cannon 1 | . . . 2 Special Weapon 3 | . . . 7 Peak Build Rating 13 | . 7 8 13 Average Rating 8 | . 6 7 10 On Entrance 6 | 6 6 7 8 Naked Turns . | . . . . Heaviest Build 25 | 11 15 17 25 Greatest Support 40 | 20 40 40 40 Greatest Overweight (x) 6 | . . . 6 Average Overweight (x) . | . . . . Largest Inventory Capacity 8 | . 8 8 8 Average Capacity 8 | . 8 8 8 Most Carried 8 | . 6 8 8 Average Carried 6 | . 5 6 5 Final Capacity 8 | 8 8 8 8 Final Carried 8 | 6 6 8 3 Class Distribution -------------------- 100% | Mutant Dominant Class ---------------- Mutant | -10/Materials Mutant | -10/Mines Mutant | -10/Subcaves Resources | -11 -10 -10 -10 ----------- Run | Yrd Mat Min Sub Matter Collected 799 | 200 . 366 233 Remotely . | . . . . Salvage Created 415 | . . 240 175 Parts 35 | . . 20 15 Haulers Intercepted . | . . . . Recyclers Shooed . | . . . . Parts Field Recycled . | . . . . Retrieved Matter . | . . . . Parts Self-Destructed 11 | . . . 11 Prevented . | . . . . Kills | -11 -10 -10 -10 ------- Run | Yrd Mat Min Sub Combat Hostiles Destroyed 13 | . . 8 5 Guns 12 | . . 8 4 Cannons 1 | . . . 1 Classes Destroyed 5 | . . 3 2 Tunneler 1 | . . 1 . Swarmer 5 | . . 4 1 Grunt 4 | . . 4 . Sentry 1 | . . . 1 Subdweller 3 | . . . 3 Best Kill Streak 3 | . . 3 2 Combat Bots Only 3 | . . 3 2 Max Kills in Single Turn 1 | . . 1 1 Gunslinging . | . . . . Exploded . | . . . . Melee . | . . . . Uniques/NPCs Destroyed . | . . . . Combat | -11 -10 -10 -10 -------- Run | Yrd Mat Min Sub Hostile Shots Fired 105 | . . 54 51 Missed 34 | . . 20 14 Damage Taken 1065 | . . 371 694 Core 250 | . . 120 130 Absorbed by Shields . | . . . . Core Remaining (%) 100 | 100 . . . Volleys Fired 60 | . . 29 31 Largest 2 | . . 2 2 Hottest 200 | . . 40 200 Shots Fired 101 | . . 54 47 Gun 74 | . . 50 24 Cannon 9 | . . . 9 Launcher 4 | . . 4 . Special 14 | . . . 14 Kinetic 63 | . . 50 13 Thermal 20 | . . . 20 Explosive 4 | . . 4 . Electromagnetic 14 | . . . 14 Robot Hit Streak 25 | . . 14 25 Robot Miss Streak 4 | . . 4 2 Penetration Max . | . . . . Secondary Targets 3 | . . 3 . Max Gunslinging Chain 1 | . . 1 . Shots Hit Robots 60 | . . 35 25 Core Hits 33 | . . 20 13 Critical Kills . | . . . . Critical Parts Destroyed . | . . . . Critical Strikes . | . . . . Melee Attacks . | . . . . Impact . | . . . . Slashing . | . . . . Piercing . | . . . . Sneak Attacks . | . . . . Combat Hostiles . | . . . . Follow-up Attacks . | . . . . Damage Inflicted 819 | . . 438 381 Guns 598 | . . 383 215 Cannons 56 | . . . 56 Explosions 38 | . . 38 . Melee . | . . . . Ramming 21 | . . 17 4 Kinetic 435 | . . 383 52 Thermal 134 | . . . 134 Explosive 38 | . . 38 . Electromagnetic 191 | . . . 191 Impact . | . . . . Slashing . | . . . . Piercing . | . . . . Highest Corruption . | . . . . Average Corruption . | . . . . Corruption Purged . | . . . . Corruption Blocked . | . . . . Overload Shots . | . . . . Overflow Damage . | . . . . Projectiles . | . . . . Explosions . | . . . . Melee . | . . . . Knockbacks 3 | . . . 3 Impact 1 | . . . 1 Kinetic 1 | . . . 1 Secondary 1 | . . . 1 Self-Inflicted Damage . | . . . . Shots . | . . . . Rammed 5 | . . 3 2 Targets Rammed 5 | . . 3 2 Kicked . | . . . . Crushed . | . . . . Highest Temperature 18 | . . 18 . Average Temperature 9 | . . 9 . Received Heat Transfer 213 | . . 120 93 Siege Activations . | . . . . Robots Corrupted . | . . . . Combat Hostiles . | . . . . Parts Fried 1 | . . . 1 Impact Corruptions . | . . . . Robots Melted . | . . . . Combat Hostiles . | . . . . Parts Melted . | . . . . Heat Transferred 837 | . . . 837 Parts Sabotaged . | . . . . Parts Stolen . | . . . . Parts Stripped . | . . . . Power Chain Reactions . | . . . . Alert | -11 -10 -10 -10 ------- Run | Yrd Mat Min Sub Peak Influence 160 | . 6 160 . Initial 1 | . . 1 . Average 61 | . . 76 . Maximum Alert Level . | . . . . Low Security (%) 100 | . 100 100 . Level 1 . | . . . . Level 2 . | . . . . Level 3 . | . . . . Level 4 . | . . . . Level 5 . | . . . . High Security . | . . . . Max Security . | . . . . Squads Dispatched . | . . . . Investigation . | . . . . Extermination . | . . . . Reinforcement . | . . . . Assault . | . . . . Garrison . | . . . . Intercept . | . . . . Searches Triggered . | . . . . Construction Impeded . | . . . . Haulers Reinforced . | . . . . Active Scanning Responses . | . . . . Cargo Convoy Interrupts . | . . . . Stealth | -11 -10 -10 -10 --------- Run | Yrd Mat Min Sub Distress Signals . | . . . . Communications Jammed . | . . . . Distress Signals . | . . . . Times Spotted 24 | . . 12 12 Peak Tracking Total 3 | . 1 3 3 Tactical Retreats 1 | . . 1 . Traps | -11 -10 -10 -10 ------- Run | Yrd Mat Min Sub Traps Triggered 5 | . 5 . . Indirectly . | . . . . Trap Hack Attempts . | . . . . Triggered . | . . . . Disarmed . | . . . . Reprogrammed . | . . . . Reused . | . . . . Traps Extracted . | . . . . Installed . | . . . . Triggered . | . . . . Machines | -11 -10 -10 -10 ---------- Run | Yrd Mat Min Sub Machines Disabled 1 | . . 1 . Max in Single Turn 1 | . . 1 . Machines Repaired . | . . . . Machines Dismantled . | . . . . Machines Sabotaged . | . . . . Overloaded Fab Kills . | . . . . Hacking | -11 -10 -10 -10 --------- Run | Yrd Mat Min Sub Machines Accessed 2 | . 2 . . Terminals 2 | . 2 . . Fabricators . | . . . . Repair Stations . | . . . . Recycling Units . | . . . . Scanalyzers . | . . . . Garrison Access . | . . . . Total Hacks 4 | . 4 . . Successful 2 | . 2 . . Failed 1 | . 1 . . Catastrophic . | . . . . Database Lockouts 1 | . 1 . . Manual 2 | . 2 . . Terminals 4 | . 4 . . Fabricators . | . . . . Repair Stations . | . . . . Recycling Units . | . . . . Scanalyzers . | . . . . Garrison Access . | . . . . Terminal Hacks 2 | . 2 . . Robot Analysis 1 | . 1 . . Alert Level 1 | . 1 . . Fabricator Hacks . | . . . . Repair Station Hacks . | . . . . Recycling Unit Hacks . | . . . . Scanalyzer . | . . . . Garrison Access Hacks . | . . . . Unauthorized Hacks . | . . . . Terminals . | . . . . Fabricators . | . . . . Repair Stations . | . . . . Recycling Units . | . . . . Scanalyzers . | . . . . Garrison Access . | . . . . Data Cores Recovered . | . . . . Used . | . . . . Hacking Detections 1 | . 1 . . Full Trace Events . | . . . . Feedback Events . | . . . . Feedback Blocked . | . . . . Robot Schematics Acquired . | . . . . Robots Built . | . . . . Authchips . | . . . . Time . | . . . . Total Robot Build Rating . | . . . . Part Schematics Acquired . | . . . . Parts Built . | . . . . Authchips . | . . . . Time . | . . . . Total Part Build Rating . | . . . . Parts Repaired . | . . . . Time . | . . . . Parts Recycled . | . . . . Recycled Matter . | . . . . Retrieved Matter . | . . . . Retrieved Components . | . . . . Parts Scanalyzed . | . . . . Part Schematics Acquired . | . . . . Parts Damaged . | . . . . Bothacking | -11 -10 -10 -10 ------------ Run | Yrd Mat Min Sub Used RIF Installer . | . . . . Robots Hacked . | . . . . Non-combat . | . . . . Combat . | . . . . Robot Hacks Applied . | . . . . Relay Couplers Released . | . . . . Fabnet Peak Effective % . | . . . . Robots Rewired . | . . . . Allies Hacked . | . . . . Hacks Repelled . | . . . . Allies | -11 -10 -10 -10 -------- Run | Yrd Mat Min Sub Total Allies 8 | . . 3 5 Largest Group 4 | . . 3 4 Highest-Rated Group 76 | . . 40 76 Highest-Rated Ally 19 | . . 16 19 Total Orders . | . . . . Ally Attacks 28 | . . 16 12 Total Damage 331 | . . 161 170 Kills 6 | . . 4 2 Allies Corrupted . | . . . . Allies Melted . | . . . . Intel | -11 -10 -10 -10 ------- Run | Yrd Mat Min Sub Robot Analysis Total 1 | . 1 . . Derelict Logs Recovered 2 | . . 1 1 Drone Launches . | . . . . Drone Recoveries . | . . . . Exploration | -11 -10 -10 -10 ------------- Run | Yrd Mat Min Sub Turns Passed 1919 | . 219 871 829 Spaces Moved 1189 | 1 141 477 570 Core 3 | . . . 3 Treads 736 | . 68 477 191 Legs 74 | 1 73 . . Wheels 376 | . . . 376 Hover . | . . . . Flight . | . . . . Fastest Speed 90 | 120 120 160 90 Average Speed 135 | 120 139 160 114 Slowest Speed 350 | 120 160 160 350 Overloaded Moves . | . . . . Propulsion Burnouts . | . . . . Robots Hopped . | . . . . Cave-ins Triggered . | . . . . Exploration Rate (%) 43 | 2 28 99 45 Regions Visited 3 Branch Regions 2 Pre-discovered Areas 1 | . . . 1 Known Exits Taken . | . . . . Unknown Exits Taken 3 | 1 1 1 . Scrap Searched 7 | . . 1 6 Spaces Dug . | . . . . Terrain Destroyed 24 | . . 24 . Melee . | . . . . Projectile . | . . . . AOE 24 | . . 24 . Terrain Rammed . | . . . . Walls Destroyed . | . . . . Machines Disabled . | . . . . Actions | -11 -10 -10 -10 --------- Run | Yrd Mat Min Sub Total 1377 | . 160 534 683 Wait 79 | . . 23 56 Move 1186 | . 140 476 570 Hop . | . . . . Pick Up 8 | . 2 2 4 Fast Attach 13 | . 10 . 3 Attach 12 | . 3 . 9 Detach 2 | . 1 . 1 Swap 5 | . 1 1 3 Drop 7 | . 3 . 4 Fire 60 | . . 29 31 Melee . | . . . . Ram . | . . . . Kick . | . . . . Crush 5 | . . 3 2 Escape Stasis . | . . . . Rewire . | . . . . Trap . | . . . . Miscellaneous . | . . . . Route ------- -11/Scrapyard -10/Materials -10/Mines (discovered 3 exits: [*Mat x2] / [*Sub]) -10/Subcaves (discovered 1 exit: [*Mat]) History --------- Turn | Location | Event 1 | -11/Scrapyard | Discovered new exit (range 0) 1 | -11/Scrapyard | Entered Materials 144 | -10/Materials | Discovered new exit (range 16) 193 | -10/Materials | Central database locked down 220 | -10/Materials | Entered Mines 230 | -10/Mines | Discovered new exit (range 15) 311 | -10/Mines | Build established: Mutant 414 | -10/Mines | Assisted by bots powering up and referring to "LRC-V3" 470 | -10/Mines | Discovered new exit (range 5) 611 | -10/Mines | Received a Rocket Launcher from a helpful Derelict 659 | -10/Mines | Learned 2 Materials zone layouts 1000 | -10/Mines | Found a hidden stash of uninstalled traps 1075 | -10/Mines | Discovered new exit (range 11) 1091 | -10/Mines | Entered Subcaves 1105 | -10/Subcaves | Core integrity fell below 50% 1148 | -10/Subcaves | Learned location of Mines (-8) 1290 | -10/Subcaves | Discovered new exit (range 9) 1294 | -10/Subcaves | Shifting Twisted Machinery released Sub. Laser 1336 | -10/Subcaves | Shifting Twisted Machinery released Sub. Beam Cannon 1506 | -10/Subcaves | Core integrity fell below 20% 1542 | -10/Subcaves | Lost 6 parts (1p2n1u2w) 1568 | -10/Subcaves | Visited triangular shrine 1577 | -10/Subcaves | Found Prototype Device 1577 | -10/Subcaves | Identified V3-11A's Pendant 1582 | -10/Subcaves | Befriended Subdweller 1627 | -10/Subcaves | Befriended Subdweller 1632 | -10/Subcaves | Befriended Subdweller 1647 | -10/Subcaves | Befriended Subdweller 1702 | -10/Subcaves | Befriended Subdweller 1920 | -10/Subcaves | Destroyed by 6L-9O5(R) with Subdweller Machine Gun Last Messages --------------- 01752_ S-10 Pest knocked back. 01752_ S-10 Pest destroyed. 01756_ Acquired 1 matter. 01764_ Flight Unit fries itself beyond repair. 01849_ Searching scrap... 01849_ Found Sub. Monowheel. 01849_ Found 57 Matter. 01850_ Acquired 29 matter. 01850_ Searching scrap... 01850_ Found Battle Rifle. 01850_ Found 30 Matter. 01851_ Searching scrap... 01851_ Found Mak. Sword. 01851_ Found Flamer. 01851_ Found 58 Matter. 01852_ Searching scrap... 01852_ Found Sub. Machine Gun. 01852_ Found Sub. Shrapnel Launcher. 01852_ Found 67 Matter. 01916_ Y7-ZM4(u) tweaks Twisted Machinery. Map ----- +----------------------------------------------------+ | ?????????????????????????????????????????????????? | | ?????????????????????????????????????????????????? | | ?????????????????????????????????????????????????? | | ?????????????????????????????????????????????????? | | ?????????????????????????????????????????????????? | | ?????????????????????????????????????????????????? | | ?????????????????????????????????????????????????? | | ?????????????????????????????????????????????????? | | ?????????????????????????????????????????????????? | | ?????????????????????????????????????????????????? | | ??????????????????????????????????? ?????????????? | | ????????????????????????????????? ?????????????? | | ?????????????????????????????????? #####????????? | | ?????????????????????????????????? ##???????? | | ?????????????????????????????????? #???????? | | ??????????????????????????????????? ???????? | | ?????????????????????????????"?????# ???????? | | ?????????????????????????? ""????## #???????? | | ????????????????????##???? ""????# ##??????? | | ????????????????????? ?????"" ##???# ##?????? | | ????????????????????? ?????"" "#?#### ??????? | | ????????????????????## ?????# "### ## #???????? | | ????????????????????# ??????#"""" ## #???????? | | ????????????????????## ####### ## ######??? | | ?????????????????#### # ## #### | | ????????????????## @ R R | | ??????????# ## | | ??????????# R # # ## ### | | ??????????# # # R ?######### ### | | ???????????????# ??????????# ##?#### | | ????????????? ????????????# ######?????# | | ??????????? # ?????????????####?????????# | | ??????????? ??# ???????????????????????????# | | ??????????????#?????????????????????????????# | | ????????????????????????????????????????????## | | ?????????????????????????????????????????????##### | | ?????????????????????????????????????????????????? | | ?????????????????????????????????????????????????? | | ?????????????????????????????????????????????????? | | ?????????????????????????????????????????????????? | | ?????????????????????????????????????????????????? | | ?????????????????????????????????????????????????? | | ?????????????????????????????????????????????????? | | ?????????????????????????????????????????????????? | | ?????????????????????????????????????????????????? | | ?????????????????????????????????????????????????? | | ?????????????????????????????????????????????????? | | ?????????????????????????????????????????????????? | | ?????????????????????????????????????????????????? | | ?????????????????????????????????????????????????? | +----------------------------------------------------+ Best States ------------- Heat Dissipation 39 Energy Generation 10 Energy Capacity 250 Matter Stores 464 Matter Capacity 500 Sight Range 16 Terrain Scan Density 10 Armor Coverage 100 Evasion (%) 55 Recoil Reduction 2 Item Schematics ----------------- None Robot Schematics ------------------ None Fabricated ------------ Nothing Alien Tech Used ----------------- None Achievements -------------- None Challenges ------------ None Game ------ Seed GrenadeCoordinationSpoofer Manual? 0 Play Time 00:10:17 Cumulative 133.4 hours Start 2024.09.15 @ 18:37:39 End 2024.09.15 @ 18:48:25 Sessions 1 Manual Loads 0 Difficulty Rogue Special Mode None Game No. 216 Rogue 215 Adventurer 1 Explorer 0 Win Type - Total 2 Types 2/0/0/0/0/0/0/0/0 Lore% 69 Gallery% 68 Achievement% 50 Wizard Run 0 Options --------- Layout 1 ASCII 0 Keyboard 0 Movement Mouse Keybinds 0 Fullscreen 2 Font 20/SmallcapsGlow Map View 54x42 Zoom Use 0% Tactical HUD 1 Map Filters NONE Filters NONE Steam 0 RUN: aa299d83-c9e6-4a01-a88b-fe3014067023